[Event "Early-Titled-Tuesday-Blitz-October-10-2023"]
[Site "Chess.com"]
[Date "2023.10.10"]
[Round "5"]
[White "Orest_Vovk"]
[Black "salomez"]
[Result "1-0"]
[WhiteElo "2528"]
[BlackElo "2313"]
[TimeControl "180+1"]
[EndTime "8:53:50 PDT"]
[Termination "Orest_Vovk won on time"]

1. h4 {[%clk 0:02:56.3]} 1... e5 {[%clk 0:02:58.8]} 2. h5 {[%clk 0:02:51.1]}
2... d5 {[%clk 0:02:55.8]} 3. h6 {[%clk 0:02:50.6]} 3... Nxh6 {[%clk 0:02:54.1]}
4. d4 {[%clk 0:02:51.2]} 4... Nc6 {[%clk 0:02:51.8]} 5. Bxh6 {[%clk 0:02:51.3]}
5... gxh6 {[%clk 0:02:51.7]} 6. dxe5 {[%clk 0:02:52.1]} 6... Nxe5 {[%clk
0:02:36.2]} 7. Nf3 {[%clk 0:02:51.4]} 7... Nxf3+ {[%clk 0:02:30.3]} 8. gxf3
{[%clk 0:02:52.3]} 8... Be6 {[%clk 0:02:24.6]} 9. Qd4 {[%clk 0:02:45.9]} 9...
Rg8 {[%clk 0:02:22.6]} 10. Nc3 {[%clk 0:02:45.8]} 10... c5 {[%clk 0:01:47.2]}
11. Qa4+ {[%clk 0:02:38.6]} 11... Qd7 {[%clk 0:01:47.2]} 12. Qxd7+ {[%clk
0:02:33.3]} 12... Kxd7 {[%clk 0:01:46.9]} 13. O-O-O {[%clk 0:02:33.2]} 13... Kc6
{[%clk 0:01:41.8]} 14. Bh3 {[%clk 0:02:08.7]} 14... Bg7 {[%clk 0:01:37.2]} 15.
e4 {[%clk 0:01:47.9]} 15... Bxc3 {[%clk 0:00:59.6]} 16. Bxe6 {[%clk 0:01:38.2]}
16... fxe6 {[%clk 0:00:49.1]} 17. exd5+ {[%clk 0:01:37.9]} 17... exd5 {[%clk
0:00:46]} 18. Rxh6+ {[%clk 0:01:35.3]} 18... Rg6 {[%clk 0:00:44.2]} 19. Rxg6+
{[%clk 0:01:34.9]} 19... hxg6 {[%clk 0:00:44]} 20. bxc3 {[%clk 0:01:35.1]} 20...
Rf8 {[%clk 0:00:43.9]} 21. Rg1 {[%clk 0:01:34.9]} 21... Rxf3 {[%clk 0:00:42]}
22. Rxg6+ {[%clk 0:01:34.5]} 22... Kb5 {[%clk 0:00:42.4]} 23. Rd6 {[%clk
0:01:23.3]} 23... Kc4 {[%clk 0:00:36.8]} 24. Kb2 {[%clk 0:01:15.3]} 24... Rxf2
{[%clk 0:00:10.6]} 25. Rd7 {[%clk 0:01:14.7]} 25... b5 {[%clk 0:00:09.9]} 26.
Rxa7 {[%clk 0:01:13.2]} 26... d4 {[%clk 0:00:10.2]} 27. cxd4 {[%clk 0:01:11.9]}
27... Kxd4 {[%clk 0:00:10.5]} 28. Rh7 {[%clk 0:01:00]} 28... Kc4 {[%clk
0:00:08.5]} 29. a3 {[%clk 0:00:56.5]} 29... b4 {[%clk 0:00:07]} 30. a4 {[%clk
0:00:53.2]} 30... Kd5 {[%clk 0:00:03.3]} 31. a5 {[%clk 0:00:49.6]} 31... Kc6
{[%clk 0:00:03.2]} 32. a6 {[%clk 0:00:42.8]} 32... Kb6 {[%clk 0:00:03.4]} 33. a7
{[%clk 0:00:42.7]} 33... Rf8 {[%clk 0:00:03.5]} 34. Kb3 {[%clk 0:00:43]} 34...
Ra8 {[%clk 0:00:01.3]} 35. Kc4 {[%clk 0:00:42.3]} 35... Rxa7 {[%clk 0:00:01.7]}
36. Rxa7 {[%clk 0:00:40.5]} 36... Kxa7 {[%clk 0:00:01.6]} 37. Kxc5 {[%clk
0:00:38.7]} 37... b3 {[%clk 0:00:01.1]} 38. cxb3 {[%clk 0:00:37.9]} 1-0

[Event "Early-Titled-Tuesday-Blitz-October-10-2023"]
[Site "Chess.com"]
[Date "2023.10.10"]
[Round "5"]
[White "GMZaven"]
[Black "KorolDimitriy75"]
[Result "1/2-1/2"]
[WhiteElo "2600"]
[BlackElo "2404"]
[TimeControl "180+1"]
[EndTime "8:53:51 PDT"]
[Termination "Game drawn by stalemate"]

1. e4 {[%clk 0:03:00.9]} 1... c5 {[%clk 0:02:58.5]} 2. Nf3 {[%clk 0:02:59.9]}
2... d6 {[%clk 0:02:58.2]} 3. d4 {[%clk 0:02:59.5]} 3... cxd4 {[%clk 0:02:59.1]}
4. Nxd4 {[%clk 0:03:00.1]} 4... Nf6 {[%clk 0:02:59.5]} 5. Nc3 {[%clk 0:03:00.8]}
5... g6 {[%clk 0:02:59.7]} 6. Be3 {[%clk 0:03:00]} 6... Bg7 {[%clk 0:03:00]} 7.
f3 {[%clk 0:03:00.6]} 7... O-O {[%clk 0:03:00.3]} 8. Qd2 {[%clk 0:03:01.3]} 8...
Nc6 {[%clk 0:03:00.7]} 9. O-O-O {[%clk 0:03:01.7]} 9... d5 {[%clk 0:03:01.1]}
10. exd5 {[%clk 0:03:01.5]} 10... Nxd5 {[%clk 0:03:02]} 11. Nxc6 {[%clk
0:02:57.5]} 11... bxc6 {[%clk 0:03:02.9]} 12. Bd4 {[%clk 0:02:58]} 12... e5
{[%clk 0:03:02.9]} 13. Bc5 {[%clk 0:02:58.2]} 13... Be6 {[%clk 0:03:02.9]} 14.
Ne4 {[%clk 0:02:57.3]} 14... Rb8 {[%clk 0:03:02.6]} 15. g4 {[%clk 0:02:55.1]}
15... f5 {[%clk 0:02:35.4]} 16. gxf5 {[%clk 0:02:54.5]} 16... gxf5 {[%clk
0:02:36.3]} 17. Ng5 {[%clk 0:02:54.7]} 17... e4 {[%clk 0:02:36.1]} 18. c3 {[%clk
0:02:52.4]} 18... Qa5 {[%clk 0:02:35.7]} 19. Nxe6 {[%clk 0:02:50.3]} 19... Qxa2
{[%clk 0:02:15]} 20. Ba3 {[%clk 0:02:42.9]} 20... Nxc3 {[%clk 0:01:26.2]} 21.
Qc2 {[%clk 0:01:16.9]} 21... Qa1+ {[%clk 0:00:32]} 22. Kd2 {[%clk 0:01:16.6]}
22... Rfd8+ {[%clk 0:00:25.5]} 23. Nxd8 {[%clk 0:01:14]} 23... Rxd8+ {[%clk
0:00:26.1]} 24. Bd3 {[%clk 0:01:14.6]} 24... Nxd1 {[%clk 0:00:20.6]} 25. Qc4+
{[%clk 0:01:02.8]} 25... Kh8 {[%clk 0:00:18.5]} 26. Rxd1 {[%clk 0:01:03.7]}
26... Rxd3+ {[%clk 0:00:11]} 27. Qxd3 {[%clk 0:01:02.5]} 27... Qxd1+ {[%clk
0:00:10.3]} 28. Kxd1 {[%clk 0:01:03.4]} 28... exd3 {[%clk 0:00:10.1]} 29. Kd2
{[%clk 0:01:04.3]} 29... Be5 {[%clk 0:00:08.8]} 30. h3 {[%clk 0:01:04.1]} 30...
Kg7 {[%clk 0:00:08.6]} 31. Kxd3 {[%clk 0:01:04.5]} 31... Kg6 {[%clk 0:00:08.6]}
32. Kc4 {[%clk 0:01:04.7]} 32... Kg5 {[%clk 0:00:04.6]} 33. Kc5 {[%clk
0:01:01.2]} 33... Kf4 {[%clk 0:00:04.4]} 34. Kxc6 {[%clk 0:01:01.7]} 34... Kxf3
{[%clk 0:00:04.7]} 35. b4 {[%clk 0:01:00.8]} 35... f4 {[%clk 0:00:04.3]} 36. b5
{[%clk 0:01:01]} 36... Kg2 {[%clk 0:00:04.3]} 37. Bc5 {[%clk 0:01:00.7]} 37...
f3 {[%clk 0:00:01.8]} 38. Bxa7 {[%clk 0:01:00.7]} 38... f2 {[%clk 0:00:01.5]}
39. Bxf2 {[%clk 0:01:00.7]} 39... Kxf2 {[%clk 0:00:02.4]} 40. Kd5 {[%clk
0:01:01.3]} 40... Bc7 {[%clk 0:00:01.9]} 41. h4 {[%clk 0:01:02.2]} 41... Kg3
{[%clk 0:00:01.4]} 42. h5 {[%clk 0:01:03.1]} 42... Kh4 {[%clk 0:00:01.5]} 43.
Ke4 {[%clk 0:01:04]} 43... Kxh5 {[%clk 0:00:01.7]} 44. Kf3 {[%clk 0:01:04.9]}
44... Kg5 {[%clk 0:00:01.9]} 45. b6 {[%clk 0:01:05.3]} 45... Bxb6 {[%clk
0:00:02.6]} 46. Kg2 {[%clk 0:01:06.1]} 46... Bc7 {[%clk 0:00:02.3]} 47. Kh1
{[%clk 0:01:07]} 47... Be5 {[%clk 0:00:02.9]} 48. Kg2 {[%clk 0:01:07.9]} 48...
h5 {[%clk 0:00:03.4]} 49. Kh1 {[%clk 0:01:08.8]} 49... h4 {[%clk 0:00:04.3]} 50.
Kg2 {[%clk 0:01:09.7]} 50... Kg4 {[%clk 0:00:05.1]} 51. Kh1 {[%clk 0:01:10.6]}
51... h3 {[%clk 0:00:05.7]} 52. Kg1 {[%clk 0:01:10.7]} 52... Kg3 {[%clk
0:00:06.2]} 53. Kh1 {[%clk 0:01:11.6]} 53... Bf4 {[%clk 0:00:06.8]} 54. Kg1
{[%clk 0:01:12.5]} 54... Be3+ {[%clk 0:00:07.5]} 55. Kh1 {[%clk 0:01:13.2]}
55... Bg5 {[%clk 0:00:07.9]} 56. Kg1 {[%clk 0:01:14.1]} 56... Bh4 {[%clk
0:00:08.7]} 57. Kh1 {[%clk 0:01:14.4]} 57... Bf6 {[%clk 0:00:09.3]} 58. Kg1
{[%clk 0:01:15.3]} 58... Be7 {[%clk 0:00:09.9]} 59. Kh1 {[%clk 0:01:16.2]} 59...
Bd6 {[%clk 0:00:10.5]} 60. Kg1 {[%clk 0:01:17.1]} 60... Kf3 {[%clk 0:00:10.9]}
61. Kh1 {[%clk 0:01:18]} 61... Kg4 {[%clk 0:00:11.4]} 62. Kg1 {[%clk 0:01:18.9]}
62... Bg3 {[%clk 0:00:11.8]} 63. Kh1 {[%clk 0:01:19.8]} 63... h2 {[%clk
0:00:12]} 64. Kg2 {[%clk 0:01:19.7]} 64... Kh4 {[%clk 0:00:12.4]} 65. Kh1 {[%clk
0:01:20.6]} 65... Kh3 {[%clk 0:00:13.2]} 1/2-1/2

[Event "Early-Titled-Tuesday-Blitz-October-10-2023"]
[Site "Chess.com"]
[Date "2023.10.10"]
[Round "5"]
[White "guillembaches"]
[Black "LuisFSiles"]
[Result "0-1"]
[WhiteElo "2493"]
[BlackElo "2335"]
[TimeControl "180+1"]
[EndTime "8:53:51 PDT"]
[Termination "LuisFSiles won on time"]

1. e4 {[%clk 0:03:00.9]} 1... c5 {[%clk 0:02:58.7]} 2. Nf3 {[%clk 0:03:01.1]}
2... Nc6 {[%clk 0:02:58.9]} 3. d4 {[%clk 0:03:01.3]} 3... cxd4 {[%clk
0:02:59.3]} 4. Nxd4 {[%clk 0:03:01.9]} 4... Nf6 {[%clk 0:02:59.6]} 5. Nc3 {[%clk
0:03:02]} 5... e5 {[%clk 0:02:58.8]} 6. Ndb5 {[%clk 0:03:02.3]} 6... d6 {[%clk
0:02:57.9]} 7. Nd5 {[%clk 0:03:02.7]} 7... Nxd5 {[%clk 0:02:57.5]} 8. exd5
{[%clk 0:03:03.1]} 8... Nb8 {[%clk 0:02:56.7]} 9. a4 {[%clk 0:03:01.6]} 9... Be7
{[%clk 0:02:55.1]} 10. Be2 {[%clk 0:03:00.9]} 10... O-O {[%clk 0:02:54.5]} 11.
Bd2 {[%clk 0:03:01]} 11... f5 {[%clk 0:02:48.5]} 12. a5 {[%clk 0:03:00.4]} 12...
Na6 {[%clk 0:02:36.6]} 13. b4 {[%clk 0:02:49.4]} 13... f4 {[%clk 0:02:31.3]} 14.
Bg4 {[%clk 0:02:45.1]} 14... Qe8 {[%clk 0:02:10.4]} 15. c4 {[%clk 0:02:28]}
15... Qg6 {[%clk 0:02:06.5]} 16. Bxc8 {[%clk 0:01:59.8]} 16... Raxc8 {[%clk
0:02:04.9]} 17. Qe2 {[%clk 0:01:58]} 17... Qxg2 {[%clk 0:01:48.4]} 18. O-O-O
{[%clk 0:01:52.3]} 18... Qxd5 {[%clk 0:01:42.1]} 19. Na3 {[%clk 0:01:42.1]}
19... Qd4 {[%clk 0:01:20.5]} 20. Kb1 {[%clk 0:01:29.1]} 20... f3 {[%clk
0:01:11.7]} 21. Qf1 {[%clk 0:01:08]} 21... Qe4+ {[%clk 0:01:03.5]} 22. Ka2
{[%clk 0:01:06.6]} 22... d5 {[%clk 0:01:03.4]} 23. c5 {[%clk 0:01:02.6]} 23...
Nxb4+ {[%clk 0:00:59.4]} 24. Bxb4 {[%clk 0:00:58.7]} 24... Qxb4 {[%clk
0:00:59.1]} 25. Rxd5 {[%clk 0:00:57.8]} 25... Bxc5 {[%clk 0:00:53.8]} 26. Qd3
{[%clk 0:00:45.3]} 26... e4 {[%clk 0:00:32.5]} 27. Qb3 {[%clk 0:00:40.5]} 27...
Qxb3+ {[%clk 0:00:31.7]} 28. Kxb3 {[%clk 0:00:41.4]} 28... Bxf2 {[%clk
0:00:31.5]} 29. Nc4 {[%clk 0:00:37.7]} 29... e3 {[%clk 0:00:29]} 30. Ne5 {[%clk
0:00:26.8]} 30... e2 {[%clk 0:00:20.4]} 31. Nd3 {[%clk 0:00:26]} 31... Bh4
{[%clk 0:00:20]} 32. Rd4 {[%clk 0:00:22]} 32... Rfd8 {[%clk 0:00:18.4]} 0-1

[Event "Early-Titled-Tuesday-Blitz-October-10-2023"]
[Site "Chess.com"]
[Date "2023.10.10"]
[Round "5"]
[White "SharapovEvgeny"]
[Black "MartinMatthiesen"]
[Result "1-0"]
[WhiteElo "2616"]
[BlackElo "2467"]
[TimeControl "180+1"]
[EndTime "8:53:52 PDT"]
[Termination "SharapovEvgeny won by resignation"]

1. e4 {[%clk 0:02:59.3]} 1... c5 {[%clk 0:02:58.8]} 2. Nf3 {[%clk 0:02:59]} 2...
d6 {[%clk 0:02:58.6]} 3. d4 {[%clk 0:02:59.1]} 3... cxd4 {[%clk 0:02:58.8]} 4.
Nxd4 {[%clk 0:02:59.4]} 4... Nf6 {[%clk 0:02:58.9]} 5. f3 {[%clk 0:02:59.6]}
5... e5 {[%clk 0:02:51.7]} 6. Nb3 {[%clk 0:02:59.3]} 6... d5 {[%clk 0:02:46.5]}
7. Bg5 {[%clk 0:02:58.5]} 7... Be6 {[%clk 0:02:46]} 8. Bxf6 {[%clk 0:02:57.4]}
8... gxf6 {[%clk 0:02:45.6]} 9. exd5 {[%clk 0:02:57.5]} 9... Bxd5 {[%clk
0:02:29.3]} 10. Nc3 {[%clk 0:02:56.8]} 10... Be6 {[%clk 0:02:29.2]} 11. Qxd8+
{[%clk 0:02:55.9]} 11... Kxd8 {[%clk 0:02:29.1]} 12. O-O-O+ {[%clk 0:02:55.4]}
12... Nd7 {[%clk 0:02:28.9]} 13. Nd5 {[%clk 0:02:50.7]} 13... Kc8 {[%clk
0:02:17.1]} 14. Bb5 {[%clk 0:02:45.5]} 14... f5 {[%clk 0:01:55]} 15. Rhe1 {[%clk
0:02:39.7]} 15... Bd6 {[%clk 0:01:38.9]} 16. Bxd7+ {[%clk 0:02:35.6]} 16... Kxd7
{[%clk 0:01:20.2]} 17. Nc3 {[%clk 0:02:25]} 17... Ke7 {[%clk 0:01:12.7]} 18. Nb5
{[%clk 0:02:20.6]} 18... Bb8 {[%clk 0:01:12.1]} 19. Nc5 {[%clk 0:02:19.3]} 19...
Rg8 {[%clk 0:01:08.3]} 20. Nxe6 {[%clk 0:02:16.4]} 20... fxe6 {[%clk 0:01:06.7]}
21. g3 {[%clk 0:02:16.1]} 21... a6 {[%clk 0:01:03.3]} 22. Nc3 {[%clk 0:02:15.9]}
22... h5 {[%clk 0:01:02.8]} 23. Rd3 {[%clk 0:02:07.1]} 23... h4 {[%clk
0:01:01.5]} 24. gxh4 {[%clk 0:02:05.3]} 24... Rg2 {[%clk 0:00:59.4]} 25. Re2
{[%clk 0:02:02]} 25... Rg1+ {[%clk 0:00:56.4]} 26. Rd1 {[%clk 0:02:01.9]} 26...
Rg6 {[%clk 0:00:56.2]} 27. Red2 {[%clk 0:02:01.5]} 27... Rh6 {[%clk 0:00:48.5]}
28. Rd7+ {[%clk 0:02:00.6]} 28... Kf6 {[%clk 0:00:48.6]} 29. Rxb7 {[%clk
0:01:57.3]} 29... Ba7 {[%clk 0:00:41.3]} 30. Rd6 {[%clk 0:01:49.8]} 30... Be3+
{[%clk 0:00:27.4]} 31. Kb1 {[%clk 0:01:45.3]} 31... e4 {[%clk 0:00:17.8]} 32.
fxe4 {[%clk 0:01:35.5]} 32... Ke5 {[%clk 0:00:18.2]} 33. Rd3 {[%clk 0:01:30.8]}
33... f4 {[%clk 0:00:18.2]} 34. Rf7 {[%clk 0:01:04]} 34... Rg8 {[%clk
0:00:18.1]} 35. a4 {[%clk 0:01:02.1]} 35... Rxh4 {[%clk 0:00:18.1]} 36. b4
{[%clk 0:00:56.3]} 36... Rxh2 {[%clk 0:00:17.7]} 37. b5 {[%clk 0:00:56.1]} 37...
axb5 {[%clk 0:00:16.7]} 38. axb5 {[%clk 0:00:55.9]} 38... Bd4 {[%clk 0:00:15.2]}
39. Rd7 {[%clk 0:00:48.4]} 39... Bxc3 {[%clk 0:00:14.4]} 40. Rxc3 {[%clk
0:00:48.7]} 40... Kxe4 {[%clk 0:00:14.6]} 41. Rc4+ {[%clk 0:00:47]} 41... Ke5
{[%clk 0:00:14.7]} 42. Rf7 {[%clk 0:00:45.6]} 42... Rf2 {[%clk 0:00:13.6]} 43.
b6 {[%clk 0:00:44.7]} 43... Rb8 {[%clk 0:00:13]} 44. b7 {[%clk 0:00:44.6]} 44...
f3 {[%clk 0:00:13.5]} 45. Rc8 {[%clk 0:00:44.4]} 45... Rf1+ {[%clk 0:00:12.6]}
46. Kb2 {[%clk 0:00:44.3]} 1-0

[Event "Early-Titled-Tuesday-Blitz-October-10-2023"]
[Site "Chess.com"]
[Date "2023.10.10"]
[Round "5"]
[White "Doudou2015"]
[Black "RodTwinkz"]
[Result "0-1"]
[WhiteElo "2163"]
[BlackElo "2789"]
[TimeControl "180+1"]
[EndTime "8:53:53 PDT"]
[Termination "RodTwinkz won by checkmate"]

1. e4 {[%clk 0:02:16.8]} 1... c5 {[%clk 0:02:59.4]} 2. Nf3 {[%clk 0:02:15.6]}
2... g6 {[%clk 0:02:58.7]} 3. d4 {[%clk 0:02:11.9]} 3... cxd4 {[%clk 0:02:59.6]}
4. Qxd4 {[%clk 0:02:12]} 4... Nf6 {[%clk 0:02:59.3]} 5. Bg5 {[%clk 0:02:10.1]}
5... Nc6 {[%clk 0:03:00.2]} 6. Qe3 {[%clk 0:02:10.5]} 6... Bg7 {[%clk
0:02:59.6]} 7. Nc3 {[%clk 0:02:10.1]} 7... O-O {[%clk 0:02:59.5]} 8. O-O-O
{[%clk 0:02:10.5]} 8... Qa5 {[%clk 0:02:59.1]} 9. Kb1 {[%clk 0:02:10.6]} 9... d6
{[%clk 0:02:49.2]} 10. Nd5 {[%clk 0:01:54.4]} 10... Be6 {[%clk 0:02:26.6]} 11.
Bc4 {[%clk 0:01:42.1]} 11... Ng4 {[%clk 0:02:10]} 12. Qd2 {[%clk 0:01:33.3]}
12... Qc5 {[%clk 0:01:28.9]} 13. Bb3 {[%clk 0:01:16.9]} 13... Qxf2 {[%clk
0:01:17.6]} 14. Nxe7+ {[%clk 0:01:14.7]} 14... Kh8 {[%clk 0:01:11.3]} 15. Nd5
{[%clk 0:00:54.7]} 15... Qxd2 {[%clk 0:01:09.1]} 16. Rxd2 {[%clk 0:00:53]} 16...
Rac8 {[%clk 0:01:09.3]} 17. h3 {[%clk 0:00:47.3]} 17... Nge5 {[%clk 0:01:08.8]}
18. Nxe5 {[%clk 0:00:43.8]} 18... dxe5 {[%clk 0:01:08.9]} 19. h4 {[%clk
0:00:36.9]} 19... h6 {[%clk 0:01:07.4]} 20. Be3 {[%clk 0:00:31.5]} 20... f5
{[%clk 0:01:04]} 21. exf5 {[%clk 0:00:26.4]} 21... Bxf5 {[%clk 0:01:04.9]} 22.
Rf2 {[%clk 0:00:18.6]} 22... Nd4 {[%clk 0:00:59.8]} 23. Rhf1 {[%clk 0:00:16.1]}
23... Nxb3 {[%clk 0:00:57.1]} 24. axb3 {[%clk 0:00:16.3]} 24... Bxc2+ {[%clk
0:00:54.9]} 25. Ka2 {[%clk 0:00:14.9]} 25... Rxf2 {[%clk 0:00:53.8]} 26. Rxf2
{[%clk 0:00:15.8]} 26... Be4 {[%clk 0:00:53.4]} 27. Ne7 {[%clk 0:00:13.6]} 27...
Re8 {[%clk 0:00:49.2]} 28. Bc5 {[%clk 0:00:11.1]} 28... b6 {[%clk 0:00:47.9]}
29. Ba3 {[%clk 0:00:11.2]} 29... Bf8 {[%clk 0:00:43.3]} 30. Nxg6+ {[%clk
0:00:09.2]} 30... Bxg6 {[%clk 0:00:44.2]} 31. Bxf8 {[%clk 0:00:09.8]} 31... Kh7
{[%clk 0:00:43.3]} 32. g4 {[%clk 0:00:08.2]} 32... h5 {[%clk 0:00:43]} 33. g5
{[%clk 0:00:09]} 33... e4 {[%clk 0:00:43.1]} 34. Bb4 {[%clk 0:00:08.6]} 34... e3
{[%clk 0:00:43.1]} 35. Rf6 {[%clk 0:00:09.1]} 35... e2 {[%clk 0:00:42.8]} 36.
Be1 {[%clk 0:00:10]} 36... Re5 {[%clk 0:00:39.6]} 37. Rd6 {[%clk 0:00:09.2]}
37... Kg8 {[%clk 0:00:39.1]} 38. Rd2 {[%clk 0:00:09.4]} 38... Ra5# {[%clk
0:00:38.1]} 0-1

[Event "Early-Titled-Tuesday-Blitz-October-10-2023"]
[Site "Chess.com"]
[Date "2023.10.10"]
[Round "5"]
[White "lefonghua"]
[Black "Juicy_Fork"]
[Result "1-0"]
[WhiteElo "2611"]
[BlackElo "2465"]
[TimeControl "180+1"]
[EndTime "8:53:54 PDT"]
[Termination "lefonghua won on time"]

1. d4 {[%clk 0:03:00.9]} 1... Nf6 {[%clk 0:02:58.4]} 2. c4 {[%clk 0:03:01]} 2...
g6 {[%clk 0:02:56.8]} 3. Nc3 {[%clk 0:03:01.4]} 3... Bg7 {[%clk 0:02:56.7]} 4.
e4 {[%clk 0:03:00.3]} 4... d6 {[%clk 0:02:55.7]} 5. f4 {[%clk 0:03:00.5]} 5...
O-O {[%clk 0:02:54.7]} 6. Nf3 {[%clk 0:03:01]} 6... c5 {[%clk 0:02:53.2]} 7. d5
{[%clk 0:03:01.6]} 7... e6 {[%clk 0:02:50.9]} 8. Be2 {[%clk 0:03:02]} 8... exd5
{[%clk 0:02:47.8]} 9. cxd5 {[%clk 0:03:02.9]} 9... Re8 {[%clk 0:02:48.5]} 10.
Nd2 {[%clk 0:03:02.9]} 10... Na6 {[%clk 0:02:35.9]} 11. O-O {[%clk 0:03:01.7]}
11... Nc7 {[%clk 0:02:34.2]} 12. a4 {[%clk 0:03:01.9]} 12... b6 {[%clk
0:02:31.1]} 13. Bf3 {[%clk 0:03:01.9]} 13... Rb8 {[%clk 0:02:28.6]} 14. Re1
{[%clk 0:03:00.1]} 14... a6 {[%clk 0:02:28.3]} 15. Nc4 {[%clk 0:02:55.9]} 15...
h5 {[%clk 0:02:09.8]} 16. h3 {[%clk 0:02:50.1]} 16... b5 {[%clk 0:01:50.5]} 17.
Na5 {[%clk 0:02:49.5]} 17... Bd7 {[%clk 0:01:35.6]} 18. axb5 {[%clk 0:02:41.3]}
18... Nxb5 {[%clk 0:01:31.5]} 19. e5 {[%clk 0:02:38.6]} 19... Nh7 {[%clk
0:01:20.5]} 20. Nxb5 {[%clk 0:02:15.4]} 20... Bxb5 {[%clk 0:01:16.8]} 21. e6
{[%clk 0:02:09.7]} 21... Qf6 {[%clk 0:01:03.6]} 22. exf7+ {[%clk 0:01:43.5]}
22... Qxf7 {[%clk 0:01:02.9]} 23. Nc6 {[%clk 0:01:34]} 23... Rbc8 {[%clk
0:00:20.6]} 24. Ra3 {[%clk 0:01:14.7]} 24... Nf8 {[%clk 0:00:18.9]} 25. Kh2
{[%clk 0:01:10.6]} 25... Bh6 {[%clk 0:00:15.8]} 26. g3 {[%clk 0:01:06.1]} 26...
h4 {[%clk 0:00:15.9]} 27. Bg2 {[%clk 0:01:00.4]} 27... hxg3+ {[%clk 0:00:14.2]}
28. Rxg3 {[%clk 0:01:01.3]} 28... Bxf4 {[%clk 0:00:12.7]} 29. Bxf4 {[%clk
0:01:00.6]} 29... Qxf4 {[%clk 0:00:13.6]} 30. Ne7+ {[%clk 0:00:59]} 30... Rxe7
{[%clk 0:00:05.6]} 31. Rxe7 {[%clk 0:00:59.9]} 31... Qf6 {[%clk 0:00:04.3]} 32.
Qe1 {[%clk 0:00:55.4]} 32... Qxb2 {[%clk 0:00:03.6]} 33. Qe4 {[%clk 0:00:49.7]}
33... Qf6 {[%clk 0:00:03.4]} 34. h4 {[%clk 0:00:49.8]} 34... Kh8 {[%clk
0:00:03.2]} 35. h5 {[%clk 0:00:49.3]} 35... gxh5 {[%clk 0:00:02.5]} 36. Rf3
{[%clk 0:00:47.8]} 36... Qh6 {[%clk 0:00:01.7]} 37. Rff7 {[%clk 0:00:44.5]}
37... a5 {[%clk 0:00:01.8]} 38. Bh3 {[%clk 0:00:42.9]} 38... Rd8 {[%clk
0:00:01.6]} 39. Qf5 {[%clk 0:00:38.4]} 39... a4 {[%clk 0:00:01.6]} 40. Rf6
{[%clk 0:00:36.5]} 40... Qd2+ {[%clk 0:00:01.2]} 41. Bg2 {[%clk 0:00:36.9]} 1-0

[Event "Early-Titled-Tuesday-Blitz-October-10-2023"]
[Site "Chess.com"]
[Date "2023.10.10"]
[Round "5"]
[White "NovozhilovSemen"]
[Black "Kielinkei"]
[Result "1-0"]
[WhiteElo "2599"]
[BlackElo "2459"]
[TimeControl "180+1"]
[EndTime "8:53:56 PDT"]
[Termination "NovozhilovSemen won on time"]

1. d4 {[%clk 0:03:00.9]} 1... Nf6 {[%clk 0:02:59.9]} 2. Nf3 {[%clk 0:03:00.3]}
2... e6 {[%clk 0:02:59.4]} 3. c4 {[%clk 0:02:58.9]} 3... Bb4+ {[%clk 0:02:58.8]}
4. Bd2 {[%clk 0:02:57.6]} 4... Qe7 {[%clk 0:02:58.9]} 5. g3 {[%clk 0:02:57.5]}
5... Bxd2+ {[%clk 0:02:58.2]} 6. Nbxd2 {[%clk 0:02:56.2]} 6... d6 {[%clk
0:02:58]} 7. Bg2 {[%clk 0:02:56.4]} 7... e5 {[%clk 0:02:58.6]} 8. O-O {[%clk
0:02:55]} 8... e4 {[%clk 0:02:52.3]} 9. Ng5 {[%clk 0:02:53.2]} 9... e3 {[%clk
0:02:52.5]} 10. Nde4 {[%clk 0:02:53.5]} 10... Nxe4 {[%clk 0:02:41.9]} 11. Nxe4
{[%clk 0:02:52.3]} 11... exf2+ {[%clk 0:02:37.5]} 12. Rxf2 {[%clk 0:02:53.2]}
12... O-O {[%clk 0:02:37.4]} 13. Qd2 {[%clk 0:02:45]} 13... Nc6 {[%clk
0:02:34.1]} 14. Nc3 {[%clk 0:02:40.7]} 14... Bg4 {[%clk 0:02:20.8]} 15. Nd5
{[%clk 0:02:36.7]} 15... Qd7 {[%clk 0:02:19.3]} 16. Raf1 {[%clk 0:02:17.4]}
16... Ne7 {[%clk 0:01:58.7]} 17. Nf4 {[%clk 0:02:11.5]} 17... c6 {[%clk
0:01:51.8]} 18. h3 {[%clk 0:01:57]} 18... Bf5 {[%clk 0:01:45.6]} 19. e4 {[%clk
0:01:56.5]} 19... Bg6 {[%clk 0:01:44.9]} 20. h4 {[%clk 0:01:56.2]} 20... h6
{[%clk 0:01:37.9]} 21. Bh3 {[%clk 0:01:50.4]} 21... Qc7 {[%clk 0:01:34.3]} 22.
Nxg6 {[%clk 0:01:43.3]} 22... Nxg6 {[%clk 0:01:34]} 23. h5 {[%clk 0:01:42.6]}
23... Ne7 {[%clk 0:01:20.4]} 24. d5 {[%clk 0:01:30.7]} 24... f5 {[%clk
0:00:55.6]} 25. exf5 {[%clk 0:01:25.8]} 25... Rf6 {[%clk 0:00:53.1]} 26. Re1
{[%clk 0:01:12.5]} 26... cxd5 {[%clk 0:00:51.3]} 27. cxd5 {[%clk 0:01:12.3]}
27... Raf8 {[%clk 0:00:47.5]} 28. g4 {[%clk 0:01:11.7]} 28... R8f7 {[%clk
0:00:27.1]} 29. Bg2 {[%clk 0:01:06.1]} 29... Kh7 {[%clk 0:00:19.2]} 30. Rfe2
{[%clk 0:01:03.2]} 30... Qc5+ {[%clk 0:00:11.5]} 31. Kh2 {[%clk 0:01:00.2]}
31... Qc7 {[%clk 0:00:10.7]} 32. Re6 {[%clk 0:00:54.1]} 32... Qd7 {[%clk
0:00:10.9]} 33. Qe3 {[%clk 0:00:50.5]} 33... Ng8 {[%clk 0:00:08.7]} 34. Re8
{[%clk 0:00:48.2]} 34... Qc7 {[%clk 0:00:04]} 35. Qxa7 {[%clk 0:00:45.8]} 35...
Re7 {[%clk 0:00:02.6]} 36. R1xe7 {[%clk 0:00:44.4]} 36... Nxe7 {[%clk
0:00:03.5]} 37. Qa8 {[%clk 0:00:44.7]} 37... g5 {[%clk 0:00:02.4]} 38. hxg6+
{[%clk 0:00:39.7]} 38... Kg7 {[%clk 0:00:02.8]} 39. Rh8 {[%clk 0:00:37.9]} 1-0